bitfinex-derivatives/quotes_SOLF0:USTF0_20250509
["timestamp","ask_amount","ask_price","bid_price","bid_amount"]
[1746753135151,36.8877,162.67,162.6,1.9288]
[1746753135545,30.74,162.67,162.64,6.1488]
[1746753135954,36.8877,162.67,162.64,6.1488]
[1746753136150,36.8877,162.67,162.63,6.1492]
[1746753136650,36.8877,162.67,162.64,6.1488]
[1746753136851,30.74,162.67,162.6,1.9288]
[1746753137355,30.74,162.71,162.67,6.1475]
[1746753137553,6.1464,162.71,162.67,6.1475]
[1746753137755,36.8864,162.71,162.68,6.1473]
[1746753138351,30.74,162.71,162.68,6.1473]
[1746753138552,30.74,162.71,162.69,6.1469]
[1746753138753,30.74,162.71,162.67,30.94]
[1746753139056,531.4,162.74,162.67,30.94]
[1746753139555,537.545,162.74,162.71,6.1461]
[1746753139756,531.4,162.74,162.71,6.1461]
[1746753140254,30.74,162.75,162.72,6.1457]
[1746753140445,30.74,162.75,162.68,6.1508]
[1746753140850,30.74,162.75,162.68,7.38020742]
[1746753141454,36.8847,162.75,162.72,6.1458]
[1746753141654,36.8847,162.75,162.68,7.38020742]
[1746753143458,30.74,162.75,162.68,7.38020742]
[1746753143658,30.74,162.75,162.69,1.22933185]
[1746753144250,6.0178,162.79,162.69,1.22933185]
[1746753144458,6.1442,162.77,162.69,1.22933185]
[1746753144956,36.8638,162.78,162.73,6.1451]
[1746753145157,30.72,162.78,162.73,6.1451]
[1746753145558,6.1442,162.77,162.73,6.1451]
[1746753145958,6.1444,162.76,162.73,6.1451]
[1746753146258,6.1444,162.76,162.71,30.86]
[1746753146761,30.72,162.78,162.71,30.86]
[1746753147958,36.8638,162.78,162.74,6.1448]
[1746753148959,6.1439,162.77,162.74,6.1448]
[1746753150062,36.8637,162.78,162.74,6.1448]
[1746753150463,30.72,162.78,162.74,6.1448]
[1746753150767,6.1439,162.77,162.74,6.1448]
[1746753150966,30.72,162.78,162.71,30.86]
[1746753151463,30.72,162.78,162.75,6.1444]
[1746753152164,30.72,162.78,162.7,30.72]
[1746753152364,30.72,162.78,162.71,30.62]
[1746753152770,6.1441,162.77,162.73,6.1451]
[1746753154068,30.72,162.78,162.72,6.1457]
[1746753154470,30.72,162.78,162.71,30.62]
[1746753154863,6.1449,162.75,162.71,30.62]
[1746753155175,30.72,162.78,162.71,30.62]
[1746753155471,6.1449,162.75,162.69,1.22933185]
[1746753155674,6.1449,162.75,162.69,31.84933185]
[1746753155874,6.1449,162.75,162.71,6.1458]
[1746753156171,30.72,162.78,162.69,1.22933185]
[1746753156470,30.62,162.77,162.69,7.37603185]
[1746753156665,30.62,162.77,162.69,1.22933185]
[1746753157163,6.146,162.72,162.69,1.22933185]
[1746753157369,30.6,162.73,162.69,7.37623185]
[1746753157667,30.6,162.73,162.69,1.22933185]
[1746753158972,6.1459,162.72,162.69,1.22933185]
[1746753159165,30.6,162.73,162.69,1.22933185]
[1746753159575,6.1464,162.71,162.69,1.22933185]
[1746753159768,30.6,162.73,162.69,1.22933185]
[1746753160972,6.1458,162.72,162.69,7.37613185]
[1746753161368,6.1458,162.72,162.69,1.22933185]
[1746753162374,30.6,162.73,162.69,1.22933185]
[1746753162773,6.1465,162.7,162.69,1.22933185]
[1746753162973,3.9295,162.72,162.63,30.94]
[1746753163173,5.9091,162.72,162.62,30.6]
[1746753163373,6.1481,162.66,162.63,6.1491]
[1746753163575,6.1481,162.66,162.61,30.94]
[1746753163873,30.6,162.68,162.63,6.149]
[1746753163874,6.1479,162.67,162.63,6.149]
[1746753164975,6.1482,162.66,162.62,6.1495]
[1746753165274,6.1482,162.66,162.61,30.94]
[1746753166272,6.1482,162.66,162.62,6.1494]
[1746753166670,6.1485,162.65,162.61,30.94]
[1746753166869,6.1485,162.65,162.61,6.1497]
[1746753167064,30.6,162.68,162.58,61.44]
[1746753167674,6.1486,162.65,162.61,6.1499]
[1746753167974,6.1486,162.65,162.58,61.44]
[1746753167975,30.6,162.68,162.58,61.44]
[1746753168273,36.7474,162.68,162.64,6.1485]
[1746753169376,30.6,162.68,162.66,6.148]
[1746753169568,537.0491,162.72,162.62,30.74]
[1746753169770,30.62,162.7,162.62,36.86388028]
[1746753170271,30.62,162.7,162.65,6.12388028]
[1746753170473,30.62,162.7,162.68,6.1471]
[1746753170667,30.62,162.7,162.65,6.12388028]
[1746753170871,30.62,162.7,162.63,2.0259]
[1746753171071,36.7666,162.7,162.63,2.0259]
[1746753171268,30.62,162.7,162.63,2.0259]
[1746753171673,6.1473,162.69,162.65,6.1482]
[1746753171875,6.1473,162.69,162.63,2.0259]
[1746753172175,30.62,162.7,162.63,2.0259]
[1746753172665,30.62,162.7,162.68,6.1469]
[1746753173076,30.62,162.7,162.64,4.0437]
[1746753173265,36.7665,162.7,162.67,6.1474]
[1746753174369,30.62,162.7,162.67,6.1474]
[1746753174570,30.62,162.7,162.68,6.1473]
[1746753174770,30.62,162.7,162.64,4.0437]
[1746753175067,30.62,162.7,162.68,6.1472]
[1746753177979,30.62,162.7,162.63,2.0259]
[1746753178181,30.62,162.7,162.64,30.62]
[1746753178978,6.1472,162.69,162.65,6.1481]
[1746753179181,6.1472,162.69,162.64,30.62]
[1746753179977,30.62,162.7,162.62,1.22986102]
[1746753180183,61.24,162.7,162.62,1.22986102]
[1746753180480,61.24,162.7,162.62,7.37916102]
[1746753180682,6.148,162.67,162.62,7.37916102]
[1746753180877,61.24,162.7,162.62,7.37916102]
[1746753181282,61.24,162.7,162.62,1.22986102]
[1746753183082,6.1487,162.65,162.62,1.22986102]
[1746753183279,61.24,162.7,162.62,1.22986102]
[1746753183984,61.24,162.7,162.63,6.149]
[1746753184278,6.1483,162.66,162.62,1.22986102]
[1746753184481,6.1483,162.66,162.62,7.37926102]
[1746753184780,6.1487,162.65,162.62,1.22986102]
[1746753185786,6.1487,162.65,162.62,7.37936102]
[1746753186084,6.1487,162.65,162.62,1.22986102]
[1746753186287,6.1482,162.66,162.62,1.22986102]
[1746753186483,61.24,162.7,162.62,7.37916102]
[1746753187385,6.1484,162.66,162.62,7.37916102]
[1746753187588,6.1484,162.66,162.63,6.1491]
[1746753187883,6.1485,162.65,162.62,1.22986102]
[1746753188084,6.1485,162.65,162.62,7.37936102]
[1746753188384,6.1474,162.68,162.62,1.22986102]
[1746753188584,61.24,162.7,162.62,1.22986102]
[1746753188980,30.62,162.7,162.62,1.22986102]
[1746753189176,61.24,162.7,162.62,1.22986102]
[1746753189779,6.1485,162.65,162.62,7.37936102]
[1746753189986,6.1485,162.65,162.62,1.22986102]
[1746753190384,6.1481,162.66,162.62,1.22986102]
[1746753190688,61.24,162.7,162.62,1.22986102]
[1746753190889,6.1475,162.68,162.64,6.1486]
[1746753191284,30.62,162.7,162.62,1.22986102]
[1746753191493,6.147,162.69,162.62,1.22986102]
[1746753191882,30.62,162.7,162.62,1.22986102]
[1746753192085,6.1474,162.68,162.64,6.1486]
[1746753192284,30.62,162.7,162.62,1.22986102]
[1746753192687,6.1483,162.66,162.62,1.22986102]
[1746753193088,6.1487,162.65,162.62,1.22986102]
[1746753193396,30.62,162.7,162.62,1.22986102]
[1746753195085,6.1474,162.68,162.64,6.1486]
[1746753195482,30.62,162.7,162.64,6.1486]
[1746753195683,30.62,162.7,162.63,6.149]
[1746753195684,6.1477,162.67,162.63,6.149]
[1746753195988,30.62,162.7,162.62,1.22986102]
[1746753196194,30.62,162.7,162.62,7.35430573]
[1746753196393,6.1472,162.69,162.65,6.1481]
[1746753196785,36.7666,162.7,162.66,6.1479]
[1746753197201,30.62,162.7,162.62,37.97430573]
[1746753197498,30.62,162.7,162.65,6.1484]
[1746753197499,6.1471,162.69,162.65,6.1484]
[1746753197689,6.1471,162.69,162.62,37.97430573]
[1746753197890,30.62,162.7,162.67,6.1476]
[1746753198089,30.62,162.7,162.62,37.97430573]
[1746753198294,30.64,162.74,162.65,6.12444471]
[1746753198495,30.64,162.74,162.68,6.12444471]
[1746753198693,102.23499579,162.76,162.71,6.12444471]
[1746753198891,102.23499579,162.76,162.73,6.1452]
[1746753199390,102.23499579,162.76,162.75,6.1447]
[1746753199596,30.64,162.78,162.71,6.12444471]
[1746753199796,30.64,162.78,162.71,36.76444471]
[1746753200097,30.64,162.78,162.75,6.1446]
[1746753200498,48.32145705,162.82,162.74,30.64]
[1746753200697,48.32145705,162.82,162.75,6.12444471]
[1746753201203,48.32145705,162.82,162.74,36.785]
[1746753201401,30.64,162.82,162.74,30.64]
[1746753201797,30.64,162.82,162.74,36.7847]
[1746753202006,6.1435,162.79,162.74,30.64]
[1746753202306,30.64,162.82,162.74,30.64]
[1746753202499,6.1425,162.81,162.74,30.64]
[1746753203103,30.64,162.82,162.77,6.1438]
[1746753203509,30.64,162.82,162.74,30.64]
[1746753204004,36.7823,162.82,162.74,40.42646938]
[1746753204207,32.7373,162.86,162.75,30.64]
[1746753204407,32.7373,162.86,162.76,1.22880314]
[1746753204909,30.64,162.86,162.77,1.9772]
[1746753205101,30.64,162.86,162.78,31.84865216]
[1746753205305,30.64,162.86,162.79,30.64]
[1746753205506,30.64,162.86,162.79,31.86857669]
[1746753205913,6.1404,162.87,162.82,6.1417]
[1746753206113,6.1404,162.87,162.82,36.7617]
[1746753206412,6.1404,162.87,162.82,30.62]
[1746753206603,30.64,162.9,162.82,30.62]
[1746753206808,6.1399,162.88,162.82,30.62]
[1746753207108,30.64,162.9,162.82,30.62]
[1746753207314,6.1402,162.87,162.82,30.62]
[1746753207513,30.64,162.9,162.82,30.62]
[1746753208116,30.64,162.9,162.83,1.22827488]
[1746753209218,30.62,162.94,162.84,32.5403]
[1746753209514,30.62,162.94,162.85,1.22812404]
[1746753209716,1.9225,162.97,162.86,40.44646938]
[1746753210015,1.9225,162.97,162.87,1.22797323]
[1746753210216,6.1374,162.95,162.91,6.1385]
[1746753210718,6.1368,162.96,162.92,6.1382]
[1746753210914,530.94,163.0,162.9,40.44646938]
[1746753211214,32.6758,163.02,162.91,5.41017172]
[1746753211414,32.6758,163.02,162.92,31.84759636]
[1746753211615,32.6758,163.02,162.93,1.22752102]
[1746753211817,32.6758,163.02,162.94,30.84]
[1746753212413,32.6758,163.02,162.95,1.22737035]
[1746753212807,32.6758,163.02,162.95,7.36417035]
[1746753213313,32.6758,163.02,162.95,1.22737035]
[1746753213717,6.1349,163.01,162.96,6.1366]
[1746753213915,32.6758,163.02,162.95,1.22737035]
[1746753214519,32.6758,163.02,162.97,6.1361]
[1746753214717,32.6758,163.02,162.95,1.22737035]
[1746753215019,32.6758,163.02,162.97,6.1361]
[1746753215216,32.6758,163.02,162.95,1.22737035]
[1746753215819,2.0333,163.05,162.96,30.74]
[1746753216021,2.0333,163.05,162.96,32.8149]
[1746753216222,2.0333,163.05,163.0,6.135]
[1746753216519,2.0333,163.05,162.98,30.76]
[1746753216718,2.0333,163.05,163.01,6.1348]
[1746753216916,30.74,163.06,162.98,30.76]
[1746753217223,30.74,163.06,162.99,1.22706914]
[1746753217421,4.0068,163.09,162.99,1.22706914]
[1746753217620,10.1387,163.09,162.99,1.22706914]
[1746753218022,4.0068,163.09,162.99,1.22706914]
[1746753218423,4.0068,163.09,163.0,30.72]
[1746753218624,4.0068,163.09,163.06,6.1327]
[1746753218825,4.0068,163.09,163.03,30.84]
[1746753220827,4.0068,163.09,163.01,1.22691859]
[1746753221222,6.134,163.04,163.01,1.22691859]
[1746753221423,30.72,163.05,163.01,1.22691859]
[1746753222831,6.1345,163.02,163.01,1.22691859]
[1746753225838,6.1342,163.03,163.01,1.22691859]
[1746753226231,6.1345,163.02,163.01,1.22691859]
[1746753228936,6.1342,163.03,163.01,1.22691859]
[1746753229126,30.72,163.05,163.01,1.22691859]
[1746753229331,30.72,163.06,163.01,1.22691859]
[1746753229536,6.1337,163.04,163.01,1.22691859]
[1746753230439,6.1341,163.03,163.01,1.22691859]
[1746753230735,30.72,163.06,163.01,1.22691859]
[1746753231841,30.72,163.06,163.01,7.36151859]
[1746753232433,6.1335,163.05,163.01,7.36151859]
[1746753233339,6.1338,163.04,163.01,1.22691859]
[1746753233642,30.72,163.06,163.01,1.22691859]
[1746753233838,30.72,163.06,163.03,6.1338]
[1746753234341,30.72,163.06,163.01,1.22691859]
[1746753234640,30.72,163.06,163.05,6.1333]
[1746753234840,6.1323,163.08,163.01,1.22691859]
[1746753235335,6.1323,163.08,163.04,6.1334]
[1746753236041,6.1327,163.07,163.04,6.1334]
[1746753236344,4.0068,163.09,163.03,6.134]
[1746753236640,6.1329,163.07,163.03,6.134]
[1746753236943,4.0068,163.09,163.03,6.134]
[1746753237142,4.0068,163.09,163.01,1.22691859]
[1746753237443,1.9899,163.09,163.01,1.22691859]
[1746753237646,8.1219,163.09,163.05,6.1333]
[1746753237846,1.9899,163.09,163.05,6.1333]
[1746753238240,8.122,163.09,163.05,6.1333]
[1746753238441,1.9899,163.09,163.04,6.1336]
[1746753238839,6.1326,163.07,163.04,6.1336]
[1746753239042,1.9899,163.09,163.05,6.1332]
[1746753239241,6.1323,163.08,163.01,1.22691859]
[1746753239547,6.1323,163.08,163.04,6.1335]
[1746753239848,8.1218,163.09,163.01,1.22691859]
[1746753240038,1.9899,163.09,163.01,1.22691859]
[1746753240351,1.9899,163.09,163.04,6.1336]
[1746753240543,6.1326,163.08,163.04,6.1336]
[1746753240846,1.9899,163.09,163.03,6.1338]
[1746753241148,1.9899,163.09,163.01,1.22691859]
[1746753241349,1.9899,163.09,163.04,6.1337]
[1746753241548,6.1323,163.08,163.04,6.1337]
[1746753241850,1.9899,163.09,163.01,1.22691859]
[1746753242449,1.9899,163.09,163.01,7.36151859]
[1746753242948,1.9899,163.09,163.02,6.1343]
[1746753243144,1.9899,163.09,163.01,1.22691859]
[1746753243459,6.1334,163.05,163.01,1.22691859]
[1746753243754,6.1334,163.05,163.01,7.36161859]
[1746753244049,30.78,163.08,163.01,1.22691859]
[1746753244252,30.7,163.07,163.01,1.22691859]
[1746753245252,6.134,163.04,163.01,1.22691859]
[1746753245552,30.7,163.07,163.01,1.22691859]
[1746753246552,6.134,163.04,163.01,1.22691859]
[1746753247353,6.1341,163.03,163.01,1.22691859]
[1746753248859,6.1345,163.02,163.01,1.22691859]
[1746753249649,6.1358,162.99,162.96,30.84538]
[1746753249850,30.68,163.02,162.96,30.84538]
[1746753250051,30.68,163.02,162.96,0.26538]
[1746753251256,6.1363,162.98,162.96,0.26538]
[1746753251456,30.68,162.98,162.89,3.9893]
[1746753251656,30.68,162.98,162.89,34.5893]
[1746753251960,6.1375,162.94,162.9,6.1389]
[1746753252255,30.7,162.94,162.84,30.7]
[1746753252456,6.1383,162.92,162.87,6.1399]
[1746753252655,6.1383,162.92,162.84,30.7]
[1746753253157,6.138,162.93,162.84,30.7]
[1746753253357,30.7,162.94,162.86,6.09738397]
[1746753253757,6.1379,162.93,162.84,40.46976902]
[1746753254558,30.7,162.94,162.84,40.46976902]
[1746753255353,30.7,162.94,162.84,102.46976902]
[1746753255649,30.7,162.94,162.9,6.1389]
[1746753256658,30.7,162.94,162.88,6.1394]
[1746753256862,30.7,162.94,162.84,30.7]
[1746753257660,6.1381,162.93,162.89,6.1393]
[1746753258464,30.7,162.94,162.84,30.7]
[1746753259363,30.7,162.94,162.87,9.76976902]
[1746753259566,30.7,162.94,162.88,30.58]
[1746753259761,61.28,162.98,162.88,61.28]
[1746753260063,6.137,162.96,162.92,6.1382]
[1746753260360,61.28,162.98,162.88,61.28]
[1746753261158,61.28,162.98,162.9,6.1389]
[1746753261653,61.28,162.98,162.88,61.28]
[1746753261871,61.28,162.98,162.88,30.58]
[1746753262265,6.1381,162.93,162.89,6.1394]
[1746753262464,30.7,162.93,162.89,6.1394]
[1746753262659,30.7,162.93,162.88,30.58]
[1746753263163,36.838,162.93,162.89,6.1391]
[1746753264263,30.7,162.93,162.85,30.58]
[1746753264762,36.8381,162.93,162.89,6.1393]
[1746753265163,30.7,162.93,162.89,6.1393]
[1746753265363,6.1383,162.92,162.88,6.1396]
[1746753267261,30.7,162.93,162.88,6.1396]
[1746753267462,6.1387,162.91,162.88,6.1396]
[1746753267961,30.7,162.93,162.84,30.7]
[1746753268360,2.0459,162.92,162.82,1.9152]
[1746753268560,6.1404,162.87,162.83,6.1414]
[1746753268761,30.7,162.89,162.82,1.9152]
[1746753268963,6.1411,162.85,162.81,6.1422]
[1746753269371,30.7,162.89,162.8,61.3]
[1746753269664,30.7,162.9,162.82,9.76976902]
[1746753269864,32.6919,162.93,162.83,6.0772]
[1746753270059,38.8301,162.93,162.84,30.58]
[1746753270266,30.7,162.93,162.84,30.58]
[1746753270661,36.8379,162.93,162.88,6.1396]
[1746753270866,36.8379,162.93,162.84,30.58]
[1746753271260,30.7,162.93,162.84,30.58]
[1746753271467,30.72,162.94,162.84,61.3]
[1746753271867,36.8575,162.94,162.84,61.3]
[1746753272463,30.72,162.94,162.84,61.3]
[1746753272669,30.72,162.94,162.86,9.76976902]
[1746753272870,30.72,162.94,162.93,6.1379]
[1746753273868,30.72,162.98,162.95,6.137]
[1746753274174,36.8562,162.98,162.95,6.137]
[1746753274469,36.8562,162.98,162.94,6.1374]
[1746753274673,30.72,162.98,162.94,6.1374]
[1746753274871,36.8561,162.98,162.89,4.0776]
[1746753275673,36.8561,162.98,162.94,6.1372]
[1746753275871,6.1364,162.97,162.94,6.1372]
[1746753276872,36.8561,162.98,162.94,6.1372]
[1746753277172,30.72,162.98,162.94,6.1372]
[1746753277374,34.4229,163.01,162.9,9.76976902]
[1746753277573,32.4845,163.01,162.9,11.83396902]
[1746753277780,30.58,163.01,162.9,11.83396902]
[1746753278473,30.58,163.01,162.94,9.76976902]
[1746753278671,30.58,163.01,162.95,34.644]
[1746753279168,6.1338,163.04,163.0,6.1352]
[1746753279370,6.1338,163.04,162.95,34.644]
[1746753279578,30.58,163.05,162.95,34.644]
[1746753279874,36.7134,163.05,163.01,6.1347]
[1746753280270,30.58,163.05,163.03,6.1341]
[1746753280676,30.58,163.05,162.99,30.58]
[1746753281475,30.58,163.05,162.95,34.644]
[1746753281676,30.58,163.04,162.95,34.644]
[1746753282780,6.1351,163.01,162.97,6.1361]
[1746753283076,30.58,163.04,162.95,34.644]
[1746753283277,30.58,163.04,162.95,30.58]
[1746753283782,2.0102,163.03,162.95,30.58]
[1746753284177,2.0102,163.03,162.95,36.717]
[1746753284775,6.1357,162.99,162.95,36.717]
[1746753284976,30.56,163.0,162.95,30.58]
[1746753285681,30.56,163.0,162.95,36.717]
[1746753286780,6.1359,162.99,162.95,36.717]
[1746753287585,36.6954,163.0,162.96,6.1366]
[1746753288085,6.1359,162.99,162.95,36.717]
[1746753288286,30.56,163.0,162.9,32.6242]
[1746753288475,30.58,162.99,162.9,2.0642]
[1746753288789,32.5755,162.99,162.9,2.0642]
[1746753289585,6.1365,162.97,162.93,6.1376]
[1746753290782,6.1361,162.98,162.94,6.1374]
[1746753290983,36.6961,162.98,162.94,6.1374]
[1746753292685,6.1364,162.97,162.94,6.1374]
[1746753292886,30.56,162.98,162.94,6.1374]
[1746753293286,30.56,162.98,162.96,6.1367]
[1746753293687,30.56,162.98,162.9,2.0642]
[1746753296290,30.56,162.98,162.96,6.1365]
[1746753296786,30.56,162.98,162.97,6.1364]
[1746753296995,30.58,163.02,162.93,70.92976902]
[1746753297284,30.58,163.02,162.98,6.1359]
[1746753297590,6.1351,163.01,162.98,6.1359]
[1746753297791,6.1351,163.01,162.97,6.1362]
[1746753298089,6.1351,163.01,162.93,61.16]
[1746753298687,36.7146,163.02,162.93,61.16]
[1746753298889,30.58,163.02,162.93,61.16]
[1746753299284,6.1351,163.01,162.93,61.16]
[1746753299780,6.1351,163.01,162.97,6.136]
[1746753299986,6.1352,163.0,162.97,6.136]
[1746753300281,30.58,163.02,162.93,61.16]
[1746753300990,30.56,163.01,162.93,30.58]
[1746753301190,30.56,163.01,162.9,32.6242]
[1746753301396,34.5802,163.01,162.9,32.6242]
[1746753302091,6.1367,162.97,162.93,6.1376]
[1746753302486,30.56,162.98,162.93,6.1376]
[1746753303391,30.56,162.98,162.9,32.6242]
[1746753303789,30.56,162.98,162.9,2.0642]
[1746753304091,30.56,162.98,162.95,6.137]
[1746753305493,30.56,162.98,162.91,30.56]
[1746753305996,36.6962,162.98,162.95,6.137]
[1746753306190,30.56,162.98,162.95,6.137]
[1746753306590,36.696,162.98,162.95,6.137]
[1746753307389,30.56,162.98,162.96,6.1366]
[1746753308394,1.9798,163.06,162.97,6.1364]
[1746753308692,30.54,163.02,162.91,30.56]
[1746753309794,6.1366,162.97,162.93,6.1376]
[1746753309996,30.54,163.02,162.91,30.56]
[1746753310390,30.54,163.02,162.93,6.1376]
[1746753311298,30.54,163.02,162.92,6.1381]
[1746753311493,6.1366,162.97,162.91,30.56]
[1746753312992,6.1368,162.96,162.93,6.1376]
[1746753313193,6.1368,162.96,162.91,30.56]
[1746753313392,30.54,162.98,162.93,6.1378]
[1746753313597,6.1366,162.97,162.93,6.1378]
[1746753313797,30.54,162.98,162.91,30.56]
[1746753314695,6.1366,162.97,162.93,6.1378]
[1746753315198,6.1368,162.96,162.92,6.1382]
[1746753315396,30.54,162.98,162.91,30.56]
[1746753316901,6.137,162.96,162.92,6.138]
[1746753317101,6.137,162.96,162.91,30.56]
[1746753317901,6.137,162.96,162.92,6.1382]
[1746753318196,6.137,162.96,162.91,30.56]
[1746753318401,6.1364,162.97,162.93,6.1376]
[1746753318701,30.54,162.98,162.93,6.1376]
[1746753318902,6.1365,162.97,162.93,6.1376]
[1746753319101,30.54,162.98,162.94,6.1374]
[1746753319305,30.54,162.98,162.93,6.10343297]
[1746753319503,6.1353,163.0,162.93,6.10343297]
[1746753320102,6.135,163.01,162.97,6.1363]
[1746753321502,6.1353,163.0,162.96,6.1366]
[1746753322305,6.1359,162.99,162.95,6.1371]
[1746753322506,30.54,163.02,162.91,30.56]
[1746753323003,6.1359,162.99,162.95,6.1368]
[1746753324808,6.1361,162.98,162.94,6.1374]
[1746753325104,30.54,163.02,162.91,30.54]
[1746753325303,6.1369,162.96,162.91,30.54]
[1746753325507,6.1369,162.96,162.92,6.138]
[1746753326005,6.1365,162.97,162.93,6.1378]
[1746753326599,36.676,162.98,162.94,6.1372]
[1746753326803,36.676,162.98,162.91,30.54]
[1746753327106,30.54,163.0,162.98,6.1356]
[1746753327304,30.54,163.0,162.95,36.64343297]
[1746753327602,6.1342,163.03,162.95,36.64343297]
[1746753328202,6.1342,163.03,162.99,6.1353]
[1746753328504,6.1342,163.03,162.95,36.64343297]
[1746753329407,6.1342,163.03,162.99,6.1354]
[1746753329605,566.9341,163.04,162.95,36.64343297]
[1746753330010,560.8,163.04,163.0,6.135]
[1746753330305,560.8,163.04,162.95,36.64343297]
[1746753330810,6.1342,163.03,162.99,6.1353]
[1746753331108,6.1342,163.03,162.95,36.64343297]
[1746753331409,566.9339,163.04,162.95,36.64343297]
[1746753331708,30.54,163.04,162.98,6.10343297]
[1746753331907,30.54,163.04,162.99,30.54]
[1746753332513,363.1329,163.07,162.99,30.54]
[1746753332809,6.1315,163.1,163.04,6.10343297]
[1746753333199,560.78,163.12,163.04,6.10343297]
[1746753333407,560.78,163.12,163.03,30.54]
[1746753334309,8.2281,163.13,163.08,6.1322]
[1746753334512,6.1304,163.13,163.08,6.1322]
[1746753335215,6.1308,163.12,163.04,3.9309]
[1746753335613,3.9728,163.14,163.04,3.9309]
[1746753335911,6.1304,163.13,163.07,6.1323]
[1746753336515,6.1304,163.13,163.08,6.1321]
[1746753337313,6.1307,163.12,163.07,6.1325]
[1746753337513,3.9728,163.14,163.04,3.9309]
[1746753337714,30.54,163.15,163.08,1.22639195]
[1746753337915,30.54,163.15,163.09,6.1315]
[1746753338515,36.6696,163.15,163.1,6.1313]
[1746753338712,30.54,163.15,163.1,6.1313]
[1746753339012,6.1307,163.13,163.08,1.22639195]
[1746753339413,30.54,163.15,163.08,1.22639195]
[1746753339613,6.13,163.14,163.09,6.1317]
[1746753339814,30.54,163.15,163.08,1.22639195]
[1746753340119,6.1301,163.14,163.08,1.22639195]
[1746753340718,6.1301,163.14,163.09,6.1315]
[1746753341620,6.1303,163.13,163.1,1.22624156]
[1746753341920,30.54,163.15,163.1,1.22624156]
[1746753342117,6.1307,163.13,163.1,1.22624156]
[1746753342418,30.54,163.15,163.1,1.22624156]
[1746753343420,6.1311,163.11,163.1,1.22624156]
[1746753343613,30.54,163.15,163.02,2.0731]
[1746753343614,31.82,163.13,163.02,2.0731]
[1746753343819,2.0803,163.12,163.03,33.04676807]
[1746753344020,2.0803,163.12,163.05,6.133]
[1746753344221,2.0803,163.12,163.03,1.22676807]
[1746753344416,1.8935,163.11,163.03,1.22676807]
[1746753344620,31.54,163.1,163.03,1.22676807]
[1746753345216,31.54,163.1,163.05,6.1333]
[1746753345416,37.6717,163.1,163.05,6.1333]
[1746753345718,31.54,163.1,163.05,6.1333]
[1746753345920,37.6715,163.1,163.05,6.1333]
[1746753346320,31.54,163.1,163.03,1.22676807]
[1746753346929,531.2472555,163.21,163.04,9.75357685]
[1746753347219,6.1289,163.17,163.04,15.65857685]
[1746753347521,567.4446,163.21,163.04,15.65857685]
[1746753347522,567.4446,163.21,163.08,9.75357685]
[1746753347712,6.1286,163.18,163.09,33.92]
[1746753347914,567.4446,163.21,163.09,33.92]
[1746753348313,6.1279,163.2,163.1,1.9489]
[1746753348618,6.1279,163.2,163.14,6.1299]
[1746753349916,567.4446,163.21,163.15,1.22586576]
[1746753350223,4.1046,163.21,163.15,1.22586576]
[1746753350426,6.1277,163.2,163.15,1.22586576]